Cogmind - Beta 16 @@@ ROGUE MODE // 2025.12.22 @ 17:09:30 Player: TheGamingJasper Result: Self-destructed Performance ------------- Evolutions (1) 500 Regions Visited (3) 600 Robots Destroyed (14) 70 Value Destroyed (253) 253 Prototype IDs (0) 0 Alien Tech Used (0) 0 Bonus (0) 0 TOTAL SCORE: 1423 Bonus ------- None Cogmind --------- Core Integrity 245/400 Matter 300/300 Energy 96/100 System Corruption 0% Temperature Danger (489) Movement Core (50) Location -9/Materials Parts ------- > --- POWER (1) -------- (None) > --- PROPULSION (4) --- (None) > --- UTILITY (2) ------ Seismic Detector > --- WEAPON (2) ------- (None) > --- INVENTORY (5) ---- Light Ion Engine Flight Unit Visual Processing Unit Terrain Scan Processor Propulsion Shielding Peak State ------------ > --- POWER ------------ Light Ion Engine > --- PROPULSION ------- Flight Unit Flight Unit Flight Unit Flight Unit > --- UTILITY ---------- Heat Sink Seismic Detector > --- WEAPON ----------- Particle Gun Particle Gun > --- INVENTORY -------- Light Ion Engine Flight Unit Improved Targeting Computer Propulsion Shielding Medium Laser [Rating: 11] Favorites ----------- Power Ion Engine Engine Ion Engine Propulsion Flight Unit Leg Aluminum Leg Flight Unit Flight Unit Utility Sensor Array Device Sensor Array Storage Small Storage Unit Weapon Medium Laser Energy Gun Medium Laser Build | -11 -10 -10 -9 ------- Run | Yrd Mat Min Mat Slots Evolved 2 | . . . 2 Power . | . . . . Propulsion 2 | . . . 2 Utility . | . . . . Weapon . | . . . . Parts Attached 17 | 5 1 6 5 Power 2 | 1 . 1 . Engine 2 | 1 . 1 . Core . | . . . . Reactor . | . . . . Propulsion 7 | 1 . 4 2 Treads . | . . . . Leg 2 | 1 . 1 . Wheel . | . . . . Hover . | . . . . Flight 5 | . . 3 2 Utility 4 | 1 1 1 1 Device 3 | . 1 1 1 Storage 1 | 1 . . . Processor . | . . . . Hackware . | . . . . Protection . | . . . . Artifact . | . . . . Weapon 4 | 2 . . 2 Energy Gun 4 | 2 . . 2 Energy Cannon . | . . . . Ballistic Gun . | . . . . Ballistic Cannon . | . . . . Launcher . | . . . . Special Weapon . | . . . . Impact Weapon . | . . . . Slashing Weapon . | . . . . Piercing Weapon . | . . . . Special Melee Weapon . | . . . . Unidentified Prototypes . | . . . . Parts Lost 10 | . . . 10 Power 1 | . . . 1 Propulsion 5 | . . . 5 Utility 2 | . . . 2 Weapon 2 | . . . 2 Highest Loss Streak 8 | . . . 8 To Critical Strikes . | . . . . Average Backups 3 | 2 2 4 4 Power . | . 1 1 1 Propulsion 1 | . 1 2 1 Utility . | . . 1 2 Weapon . | . . . . Tool/Special . | . . . . Unused Backups 11 | . . 4 7 Power 2 | . . 1 1 Propulsion 5 | . . 3 2 Utility 4 | . . . 4 Weapon . | . . . . Tool/Special . | . . . . Average Slot Usage (%) 87 | . 81 93 89 Engine 13 | . 14 14 10 Leg 11 | . 14 16 . Flight 12 | . . 8 38 Device 15 | . 10 19 20 Storage 8 | . 14 8 . Energy Gun 24 | . 28 24 19 Peak Build Rating 11 | 5 6 7 11 Average Rating 6 | 3 5 6 9 On Entrance 4 | . 5 6 6 Avg Prop Armor Cover (%) . | . . . . Naked Turns . | . . . . Heaviest Build 15 | 14 15 15 11 Greatest Support 20 | 10 10 20 16 Greatest Overweight (x) 1 | 1 1 1 . Average Overweight (x) . | . 1 . . Largest Inventory Capacity 8 | 8 8 8 5 Average Capacity 6 | 6 8 6 5 Most Carried 6 | 5 4 6 5 Average Carried 3 | 2 2 4 4 Final Capacity 8 | 8 8 5 5 Final Carried 5 | 2 3 5 5 Class Distribution -------------------- 80% | Mutant 19% | Scavenger-Sprinter Dominant Class ---------------- Mutant | -10/Materials Mutant | -10/Mines Scavenger-Sprinter | -9/Materials Resources | -11 -10 -10 -9 ----------- Run | Yrd Mat Min Mat Matter Collected 370 | 194 47 79 50 Remotely . | . . . . Salvage Created 344 | . 47 52 245 Parts 31 | . 2 7 22 Haulers Intercepted . | . . . . Recyclers Shooed . | . . . . Parts Field Recycled . | . . . . Retrieved Matter . | . . . . Parts Self-Destructed . | . . . . Prevented . | . . . . Parts Restored . | . . . . Kills | -11 -10 -10 -9 ------- Run | Yrd Mat Min Mat Combat Hostiles Destroyed 13 | . 1 3 9 Guns 13 | . 1 3 9 Classes Destroyed 4 | . 1 1 2 Recycler 1 | . . . 1 Swarmer 9 | . . 3 6 Grunt 3 | . 1 . 2 Sentry 1 | . . . 1 Best Kill Streak 5 | . 1 3 5 Combat Bots Only 5 | . 1 3 5 Max Kills in Single Turn 2 | . 1 2 1 Gunslinging 1 | . . 1 . Exploded . | . . . . Melee . | . . . . Uniques/NPCs Destroyed . | . . . . Combat | -11 -10 -10 -9 -------- Run | Yrd Mat Min Mat Hostile Shots Fired 82 | . 5 13 64 Missed 13 | . . 2 11 Hits 69 | . 5 11 53 Projectile 69 | . 5 11 53 Damage Taken 676 | . 51 76 549 Core 171 | . 10 6 155 Absorbed by Shields . | . . . . Core Remaining (%) 96 | 100 . 93 . Volleys Fired 31 | . 2 5 24 Largest 2 | . 2 2 2 Hottest 130 | . 90 90 130 Shots Fired 54 | . 4 10 40 Gun 54 | . 4 10 40 Cannon . | . . . . Launcher . | . . . . Special . | . . . . Kinetic . | . . . . Thermal 47 | . 2 5 40 Explosive . | . . . . Electromagnetic 7 | . 2 5 . Robot Hit Streak 11 | . 2 2 11 Robot Miss Streak 5 | . 1 4 5 Penetration Max . | . . . . Secondary Targets 2 | . . 2 . Max Gunslinging Chain 1 | . . 1 . Shots Hit Robots 27 | . 3 4 20 Core Hits 18 | . 2 3 13 Critical Kills . | . . . . Critical Parts Destroyed . | . . . . Critical Strikes . | . . . . Melee Attacks . | . . . . Impact . | . . . . Slashing . | . . . . Piercing . | . . . . Sneak Attacks . | . . . . Combat Hostiles . | . . . . Follow-up Attacks . | . . . . Damage Inflicted 464 | . 38 47 379 Guns 464 | . 38 47 379 Cannons . | . . . . Explosions . | . . . . Melee . | . . . . Ramming . | . . . . Kinetic . | . . . . Thermal 416 | . 13 24 379 Explosive . | . . . . Electromagnetic 48 | . 25 23 . Impact . | . . . . Slashing . | . . . . Piercing . | . . . . Highest Corruption . | . . . . Average Corruption . | . . . . Corruption Purged . | . . . . Corruption Blocked . | . . . . Overload Shots . | . . . . Overflow Damage . | . . . . Projectiles . | . . . . Explosions . | . . . . Melee . | . . . . Knockbacks . | . . . . Impact . | . . . . Kinetic . | . . . . Secondary . | . . . . Self-Inflicted Damage . | . . . . Shots . | . . . . Rammed . | . . . . Targets Rammed . | . . . . Kicked . | . . . . Crushed . | . . . . Highest Temperature 474 | . 72 150 474 Average Temperature 155 | . 41 77 185 Received Heat Transfer 213 | . 30 . 183 Effects 2 | . . . 2 Short Circuit 1 | . . . 1 Damage (minor) 1 | . . . 1 Siege Activations . | . . . . Martial Activations . | . . . . Shielding Activations . | . . . . Robots Disrupted . | . . . . Combat Hostiles . | . . . . Robots Corrupted . | . . . . Combat Hostiles . | . . . . Parts Fried . | . . . . Impact Corruptions . | . . . . Robots Melted . | . . . . Combat Hostiles . | . . . . Parts Melted . | . . . . Heat Transferred 1036 | . 37 74 925 Parts Sabotaged . | . . . . Parts Stolen . | . . . . Parts Stripped . | . . . . Power Chain Reactions . | . . . . Alert | -11 -10 -10 -9 ------- Run | Yrd Mat Min Mat Maximum Alert Level . | . . . . Low Security (%) 100 | 100 100 100 100 Level 1 . | . . . . Level 2 . | . . . . Level 3 . | . . . . Level 4 . | . . . . Level 5 . | . . . . High Security . | . . . . Max Security . | . . . . Peak Influence 132 | . 30 70 132 Initial 11 | . . . 11 Average 24 | . 3 20 76 Influence Increases 347 | . 30 70 247 Destroy 0b10 Robot/C 260 | . 20 60 180 Destroy 0b10 Robot/NC 5 | . . . 5 Destroy Leader 50 | . 10 10 30 Disable Machine 15 | . . . 15 Destroy Structure 2 | . . . 2 Partial Spotted 15 | . . . 15 Influence Decreases 250 | . 30 40 180 Entered New Map 19 | . . . 19 Time Decay 131 | . 30 40 61 Lost Part 100 | . . . 100 Squads Dispatched 2 | . 1 . 1 Investigation . | . . . . Extermination . | . . . . Reinforcement 2 | . 1 . 1 Assault . | . . . . Garrison . | . . . . Intercept . | . . . . Searches Triggered . | . . . . Construction Impeded . | . . . . Haulers Reinforced . | . . . . Active Scanning Responses . | . . . . Cargo Convoy Interrupts . | . . . . Stealth | -11 -10 -10 -9 --------- Run | Yrd Mat Min Mat Distress Signals . | . . . . Communications Jammed . | . . . . Distress Signals . | . . . . Times Spotted 24 | . 4 3 17 Peak Tracking Total 8 | . 2 3 8 Tactical Retreats . | . . . . Traps | -11 -10 -10 -9 ------- Run | Yrd Mat Min Mat Traps Triggered . | . . . . Indirectly . | . . . . Trap Hack Attempts . | . . . . Triggered . | . . . . Disarmed . | . . . . Reprogrammed . | . . . . Reused . | . . . . Traps Extracted . | . . . . Installed . | . . . . Triggered . | . . . . Machines | -11 -10 -10 -9 ---------- Run | Yrd Mat Min Mat Machines Disabled 1 | . . . 1 Max in Single Turn 1 | . . . 1 Machines Repaired . | . . . . Machines Dismantled . | . . . . Machines Sabotaged . | . . . . Overloaded Fab Kills . | . . . . Hacking | -11 -10 -10 -9 --------- Run | Yrd Mat Min Mat Machines Accessed . | . . . . Terminals . | . . . . Fabricators . | . . . . Repair Stations . | . . . . Recycling Units . | . . . . Scanalyzers . | . . . . Garrison Access . | . . . . Total Hacks . | . . . . Successful . | . . . . Failed . | . . . . Catastrophic . | . . . . Database Lockouts . | . . . . Manual . | . . . . Terminals . | . . . . Fabricators . | . . . . Repair Stations . | . . . . Recycling Units . | . . . . Scanalyzers . | . . . . Garrison Access . | . . . . Terminal Hacks . | . . . . Fabricator Hacks . | . . . . Repair Station Hacks . | . . . . Recycling Unit Hacks . | . . . . Scanalyzer . | . . . . Garrison Access Hacks . | . . . . Unauthorized Hacks . | . . . . Terminals . | . . . . Fabricators . | . . . . Repair Stations . | . . . . Recycling Units . | . . . . Scanalyzers . | . . . . Garrison Access . | . . . . Data Cores Recovered . | . . . . Used . | . . . . Hacking Detections . | . . . . Full Trace Events . | . . . . Feedback Events . | . . . . Feedback Blocked . | . . . . Robot Schematics Acquired . | . . . . Robots Built . | . . . . Authchips . | . . . . Time . | . . . . Total Robot Build Rating . | . . . . Part Schematics Acquired . | . . . . Parts Built . | . . . . Authchips . | . . . . Time . | . . . . Total Part Build Rating . | . . . . Part Studies Acquired . | . . . . Parts Repaired . | . . . . Time . | . . . . Parts Recycled . | . . . . Recycled Matter . | . . . . Retrieved Matter . | . . . . Retrieved Components . | . . . . Parts Scanalyzed . | . . . . Part Schematics Acquired . | . . . . Parts Damaged . | . . . . Bothacking | -11 -10 -10 -9 ------------ Run | Yrd Mat Min Mat Used RIF Installer . | . . . . Robots Hacked . | . . . . Non-combat . | . . . . Combat . | . . . . Robot Hacks Applied . | . . . . Relay Couplers Released . | . . . . Fabnet Peak Effective % . | . . . . Robots Rewired . | . . . . Allies Hacked . | . . . . Hacks Repelled . | . . . . Allies | -11 -10 -10 -9 -------- Run | Yrd Mat Min Mat Total Allies . | . . . . Largest Group . | . . . . Highest-Rated Group . | . . . . Highest-Rated Ally . | . . . . Total Orders . | . . . . Ally Attacks . | . . . . Total Damage . | . . . . Kills . | . . . . Allies Corrupted . | . . . . Allies Melted . | . . . . Intel | -11 -10 -10 -9 ------- Run | Yrd Mat Min Mat Active Infowar (turns) 578 | . 235 187 156 Sensors 482 | . 235 187 60 Seismic 225 | . . 69 156 Robot Analysis Total . | . . . . Derelict Logs Recovered . | . . . . Drone Launches . | . . . . Drone Recoveries . | . . . . Exploration | -11 -10 -10 -9 ------------- Run | Yrd Mat Min Mat Turns Passed 701 | 61 297 187 156 Spaces Moved 552 | 47 110 180 215 Core 28 | 28 . . . Treads . | . . . . Legs 183 | 19 110 54 . Wheels . | . . . . Hover . | . . . . Flight 341 | . . 126 215 Fastest Speed 31 | 50 190 37 31 Average Speed 81 | 106 190 68 31 Slowest Speed 190 | 190 190 190 34 Overloaded Moves . | . . . . Propulsion Burnouts . | . . . . Robots Hopped 4 | . . . 4 Potential Cave-ins . | . . . . Cave-ins Triggered . | . . . . Exploration Rate (%) 19 | 3 26 26 24 Regions Visited 3 Branch Regions 1 Pre-discovered Areas . | . . . . Known Exits Taken . | . . . . Unknown Exits Taken 3 | 1 1 1 . Scrap Searched 1 | . . 1 . Spaces Dug . | . . . . Terrain Destroyed . | . . . . Melee . | . . . . Projectile . | . . . . AOE . | . . . . Terrain Rammed . | . . . . Walls Destroyed . | . . . . Machines Disabled . | . . . . Actions | -11 -10 -10 -9 --------- Run | Yrd Mat Min Mat Total 748 | 58 194 237 259 Wait 116 | . 80 26 10 Move 541 | 46 109 179 207 Hop 4 | . . . 4 Pick Up 25 | 7 2 11 5 Fast Attach 3 | . . . 3 Attach 10 | 5 1 2 2 Detach . | . . . . Swap 5 | . . 4 1 Drop 13 | . . 10 3 Fire 31 | . 2 5 24 Melee . | . . . . Ram . | . . . . Kick . | . . . . Crush . | . . . . Escape Stasis . | . . . . Rewire . | . . . . Trap . | . . . . Miscellaneous . | . . . . Route ------- -11/Scrapyard -10/Materials -10/Mines -9/Materials History --------- Turn | Location | Event 15 | -11/Scrapyard | Discovered new exit (range 14) 62 | -11/Scrapyard | Entered Materials 316 | -10/Materials | Build established: Mutant 321 | -10/Materials | Discovered new exit (range 6) 359 | -10/Materials | Entered Mines 367 | -10/Mines | Found DCF Scrap (13 items) 537 | -10/Mines | Discovered new exit (range 6) 540 | -10/Mines | Assembled infested the area 546 | -10/Mines | Entered Materials 546 | -9/Materials | Evolved 2 slots: Propulsion x2 702 | -9/Materials | Self-destructed Last Messages --------------- R-06 Scavenger collects Flight Unit. S-10 Pest destroyed. K-01 Serf collects debris. Heat Sink destroyed. R-06 Scavenger collects Flight Unit. Particle Gun destroyed. G-34 Mercenary destroyed. K-01 Serf collects debris. R-06 Scavenger collects Aluminum Leg. R-06 Scavenger collects Flight Unit. Flight Unit destroyed. R-06 Scavenger destroyed. K-01 Serf collects debris. R-06 Scavenger collects Com. Wheel. Flight Unit destroyed. Lgt. Ion Engine destroyed. K-01 Serf cleans the Nuclear Reactor. Overheating: Seismic Detector damaged (-3). Particle Gun destroyed. K-01 Serf collects debris. Map ----- +----------------------------------------------------+ | ?????????????????????????????????????????????????? | | ?????????????????????????????????????????????????? | | ?????????????????????????????????????????????????? | | ?????????????????????????????????????????????????? | | ?????????????????????????????????????????????????? | | ?????????????????????????????????????????????????? | | ?????????????????????????????????????????????????? | | ?????????????????????????????????????????????????? | | ?????????????????????????????????????????????????? | | ?????????????????????????????????????????????????? | | ?????????????????????????????????????????????????? | | ?????????????????????????????????????????????????? | | ?????????????????????????????????????????????????? | | ?????????????????###?????????????????????????????? | | ?????????????????? ?????????????????#??????????? | | ??????????????????? ??????????????? ?????????? | | ???????????????????? ?????????????? ?????????? | | ????????????????????# ????????????!!/ ????????? | | ????????????????????# ?????????? !! ?????????? | | ????????????????????# ######### !! ???????????? | | ????????????????????# ?????????????? | | ????????????????????? ???????????????? | | ?????????????????????? ?????????????????? | | ?????????????????????? ?? % ???????????????????? | | ?########????????????? ?###/###??????????????????? | | ?# #?########???# ##@%u #??????????????????? | | ?# #?? #???# ##=%gg #??????????????????? | | ?# """ #?? ]] #???# ##*!*k #??????????????????? | | ?# """ #???]] ????# ##!== #??????????????????? | | ?# """ #???] [????# ## """ #??????????????????? | | ??? ????? ?????# ## """ #??????????????????? | | ???##+##????? ?????# ## """ #??????????????????? | | #### #######+####### ## #??????????????????? | | + """ #??????????????????? | | #### ############ ### """ #??????????????????? | | ##### ##??????????# #?# """ #??????????????????? | | #???????????# #?# #??????????????????? | | ########????# #?#######??????????????????? | | * #! #????# #??????????????????????????? | | % + """#????# #??????????????????????????? | | #### # R"#????# #??????????????????????????? | | #??# #! """#????# #??????????????????????????? | | #??# # #???? ??????????????????????????? | | [#??# # = #???? ??????????????????????????? | | *#??# ########???? ??????????????????????????? | | *#### #??????????# #?????????????????????????? | | % # #??????????# #?????????????????????????? | | # #??????????### ###?????????????????????????? | | ! # ?????????????? ????????????????????????????? | | # ???????????????????????????????????????????? | +----------------------------------------------------+ Best States ------------- Heat Dissipation 38 Energy Generation 10 Energy Capacity 250 Matter Stores 300 Matter Capacity 300 Sight Range 16 Robot Scan Range 14 Terrain Scan Density 10 Evasion (%) 63 Item Schematics ----------------- None Robot Schematics ------------------ None Fabricated ------------ Nothing Repaired ---------- Nothing Studied --------- None Alien Tech Used ----------------- None Achievements -------------- None Challenges ------------ None Game ------ Seed SpectralNeutronCannon Manual? 0 Play Time 00:10:06 Cumulative 31.5 hours Start 2025.12.22 @ 17:01:58 End 2025.12.22 @ 17:09:30 Sessions 1 Manual Loads 0 Difficulty Rogue Special Mode None Game No. 57 Rogue 56 Adventurer 1 Explorer 0 Win Type - Total 0 Types 0/0/0/0/0/0/0/0/0/0 Lore% 8 Gallery% 29 Achievement% 19 Wizard Run 0 Options --------- Layout 1 ASCII 0 Keyboard 0 Movement Arrows Keybinds 0 Fullscreen 1 Font 24/Smallcaps Map View 50x35 Zoom Use 0% Tactical HUD 0 Map Filters NONE Filters NONE Steam 1 RUN: 5197abde-a23d-4255-b158-e7f0116b6293